[Event "FIDE Grand Swiss 2023"]
[Site "Villa Marina, Douglas, Isle of Man"]
[Date "2023.10.27"]
[Round "3.57"]
[White "Adhiban, B."]
[Black "Kolbus, Dietmar"]
[Result "1/2-1/2"]
[WhiteElo "2551"]
[BlackElo "2225"]
[EventDate "2023.10.25"]
[ECO "C24"]
[PlyCount "112"]
[BlackFideId "4610628"]
[TimeControl "40/100 + 20/50 + 15 + 30s/move"]
[WhiteFideId "5018471"]

1.e4 {[%clk 01:40:33] [%emt 00:00:26]} 1...e5 {[%clk 01:40:53] [%emt 00:00:08]} 
2.Bc4 {[%clk 01:40:43] [%emt 00:00:21]} 2...Nf6 {[%clk 01:40:35] [%emt
00:00:48]} 3.d3 {[%clk 01:41:09] [%emt 00:00:04]} 3...c6 {[%clk 01:39:33] [%emt
00:01:31]} 4.Nf3 {[%clk 01:41:30] [%emt 00:00:09]} 4...d5 {[%clk 01:39:36] [%emt
00:00:27]} 5.Bb3 {[%clk 01:41:52] [%emt 00:00:09]} 5...Bb4+ {[%clk 01:37:20]
[%emt 00:02:45]} 6.c3 {[%clk 01:40:50] [%emt 00:01:33]} 6...Bd6 {[%clk 01:37:23]
[%emt 00:00:26]} 7.Bg5 {[%clk 01:36:13] [%emt 00:05:07]} 7...dxe4 {[%clk
01:35:37] [%emt 00:02:16]} 8.dxe4 {[%clk 01:36:39] [%emt 00:00:05]} 8...h6 
{[%clk 01:30:09] [%emt 00:05:57]} 9.Bh4 {[%clk 01:37:06] [%emt 00:00:03]} 
9...Qe7 {[%clk 01:25:30] [%emt 00:05:09]} 10.Nbd2 {[%clk 01:34:37] [%emt
00:03:00]} 10...Bc7 {[%clk 01:25:14] [%emt 00:00:44]} 11.Nc4 {[%clk 01:30:04]
[%emt 00:05:04]} 11...Nbd7 {[%clk 01:15:58] [%emt 00:09:47]} 12.Bc2 {[%clk
01:24:50] [%emt 00:05:44]} 12...Nf8 {[%clk 01:01:38] [%emt 00:14:49]} 13.O-O 
{[%clk 01:14:00] [%emt 00:11:21]} 13...Ng6 {[%clk 01:01:56] [%emt 00:00:12]} 
14.Bg3 {[%clk 01:14:28] [%emt 00:00:01]} 14...O-O {[%clk 01:01:28] [%emt
00:00:59]} 15.Re1 {[%clk 01:04:19] [%emt 00:10:39]} 15...Rd8 {[%clk 00:57:41]
[%emt 00:04:17]} 16.Qe2 {[%clk 01:00:59] [%emt 00:03:50]} 16...Nh5 {[%clk
00:55:25] [%emt 00:02:45]} 17.Ne3 {[%clk 00:58:53] [%emt 00:02:36]} 17...Nxg3 
{[%clk 00:50:42] [%emt 00:05:13]} 18.hxg3 {[%clk 00:59:04] [%emt 00:00:19]} 
18...Be6 {[%clk 00:48:24] [%emt 00:02:47]} 19.Bb3 {[%clk 00:58:31] [%emt
00:01:05]} 19...Rd7 {[%clk 00:42:32] [%emt 00:06:21]} 20.Qc2 {[%clk 00:53:13]
[%emt 00:05:48]} 20...Rad8 {[%clk 00:39:07] [%emt 00:03:55]} 21.Bxe6 {[%clk
00:53:16] [%emt 00:00:27]} 21...Qxe6 {[%clk 00:39:11] [%emt 00:00:25]} 22.Qb3 
{[%clk 00:53:40] [%emt 00:00:07]} 22...Qxb3 {[%clk 00:33:33] [%emt 00:06:08]} 
23.axb3 {[%clk 00:53:52] [%emt 00:00:18]} 23...a6 {[%clk 00:31:32] [%emt
00:02:31]} 24.Kf1 {[%clk 00:44:53] [%emt 00:09:29]} 24...f6 {[%clk 00:29:39]
[%emt 00:02:24]} 25.Red1 {[%clk 00:41:52] [%emt 00:03:31]} 25...Rxd1+ {[%clk
00:26:56] [%emt 00:03:13]} 26.Nxd1 {[%clk 00:42:20] [%emt 00:00:01]} 26...h5 
{[%clk 00:25:31] [%emt 00:01:55]} 27.Ne3 {[%clk 00:41:33] [%emt 00:01:18]} 
27...Nf8 {[%clk 00:24:35] [%emt 00:01:26]} 28.Ke2 {[%clk 00:41:33] [%emt
00:00:29]} 28...g6 {[%clk 00:24:41] [%emt 00:00:24]} 29.Ne1 {[%clk 00:37:39]
[%emt 00:04:24]} 29...Ne6 {[%clk 00:24:36] [%emt 00:00:35]} 30.Nd3 {[%clk
00:37:53] [%emt 00:00:16]} 30...Kg7 {[%clk 00:22:53] [%emt 00:02:12]} 31.b4 
{[%clk 00:36:49] [%emt 00:01:35]} 31...Kf7 {[%clk 00:17:36] [%emt 00:05:47]} 
32.Rh1 {[%clk 00:35:56] [%emt 00:01:22]} 32...Kg7 {[%clk 00:17:38] [%emt
00:00:28]} 33.Nc4 {[%clk 00:34:21] [%emt 00:02:07]} 33...Rd7 {[%clk 00:16:28]
[%emt 00:01:39]} 34.f3 {[%clk 00:30:58] [%emt 00:03:54]} 34...Rd8 {[%clk
00:15:04] [%emt 00:01:53]} 35.Rf1 {[%clk 00:22:28] [%emt 00:09:00]} 35...Re8 
{[%clk 00:14:38] [%emt 00:00:56]} 36.Ke3 {[%clk 00:20:52] [%emt 00:02:06]} 
36...Re7 {[%clk 00:12:26] [%emt 00:02:42]} 37.Na5 {[%clk 00:09:26] [%emt
00:11:57]} 37...Bb6+ {[%clk 00:12:16] [%emt 00:00:39]} 38.Ke2 {[%clk 00:09:54]
[%emt 00:00:02]} 38...Ba7 {[%clk 00:07:03] [%emt 00:05:43]} 39.Rd1 {[%clk
00:09:17] [%emt 00:01:08]} 39...Kf8 {[%clk 00:05:45] [%emt 00:01:47]} 40.b3 
{[%clk 00:07:00] [%emt 00:02:47]} 40...Rc7 {[%clk 00:02:34] [%emt 00:03:39]} 
41.f4 {[%clk 00:37:15] [%emt 00:20:17]} 41...exf4 {[%clk 00:52:35] [%emt
00:00:29]} 42.Nxf4 {[%clk 00:32:52] [%emt 00:04:54]} 42...Ng5 {[%clk 00:25:51]
[%emt 00:27:13]} 43.Rd8+ {[%clk 00:25:24] [%emt 00:07:58]} 43...Kg7 {[%clk
00:25:35] [%emt 00:00:46]} 44.Ra8 {[%clk 00:16:03] [%emt 00:09:52]} 44...Bg1 
{[%clk 00:25:48] [%emt 00:00:16]} 45.Nh3 {[%clk 00:14:33] [%emt 00:02:00]} 
45...Nxh3 {[%clk 00:15:09] [%emt 00:11:09]} 46.gxh3 {[%clk 00:15:02] [%emt
00:00:01]} 46...c5 {[%clk 00:12:12] [%emt 00:03:28]} 47.Rd8 {[%clk 00:13:03]
[%emt 00:02:28]} 47...cxb4 {[%clk 00:12:19] [%emt 00:00:24]} 48.cxb4 {[%clk
00:13:29] [%emt 00:00:03]} 48...b5 {[%clk 00:10:13] [%emt 00:02:36]} 49.g4 
{[%clk 00:11:03] [%emt 00:02:56]} 49...hxg4 {[%clk 00:09:56] [%emt 00:00:47]} 
50.hxg4 {[%clk 00:11:33] [%emt 00:00:01]} 50...Bh2 {[%clk 00:08:52] [%emt
00:01:33]} 51.Ra8 {[%clk 00:11:17] [%emt 00:00:46]} 51...Be5 {[%clk 00:08:39]
[%emt 00:00:43]} 52.Rxa6 {[%clk 00:09:59] [%emt 00:01:49]} 52...Rc2+ {[%clk
00:07:57] [%emt 00:01:12]} 53.Kf1 {[%clk 00:08:51] [%emt 00:01:37]} 53...Rc1+ 
{[%clk 00:08:13] [%emt 00:00:14]} 54.Kf2 {[%clk 00:09:16] [%emt 00:00:05]} 
54...Rc2+ {[%clk 00:08:32] [%emt 00:00:11]} 55.Kf1 {[%clk 00:08:57] [%emt
00:00:50]} 55...Rc1+ {[%clk 00:08:52] [%emt 00:00:09]} 56.Kf2 {[%clk 00:09:19]
[%emt 00:00:06]} 56...Rc2+ {[%clk 00:09:09] [%emt 00:00:15]} 1/2-1/2

[Event "FIDE Grand Swiss 2023"]
[Site "Villa Marina, Douglas, Isle of Man"]
[Date "2023.10.28"]
[Round "4.1"]
[White "Caruana, Fabiano"]
[Black "Sindarov, Javokhir"]
[Result "1/2-1/2"]
[WhiteElo "2786"]
[BlackElo "2658"]
[EventDate "2023.10.25"]
[ECO "E73"]
[PlyCount "62"]
[BlackFideId "14205483"]
[TimeControl "40/100 + 20/50 + 15 + 30s/move"]
[WhiteFideId "2020009"]
[ePGN "0.1;DGT LiveChess/2.2.5"]

1.c4 {[%clk 01:40:54] [%emt 00:00:06]} 1...g6 {[%clk 01:39:57] [%emt 00:01:03]} 
2.e4 {[%clk 01:41:16] [%emt 00:00:07]} 2...Bg7 {[%clk 01:39:16] [%emt 00:01:11]} 
3.d4 {[%clk 01:41:27] [%emt 00:00:20]} 3...d6 {[%clk 01:39:41] [%emt 00:00:05]} 
4.Nc3 {[%clk 01:41:43] [%emt 00:00:13]} 4...Nf6 {[%clk 01:40:06] [%emt
00:00:05]} 5.Be2 {[%clk 01:41:52] [%emt 00:00:21]} 5...O-O {[%clk 01:40:17]
[%emt 00:00:19]} 6.Be3 {[%clk 01:42:16] [%emt 00:00:07]} 6...c5 {[%clk 01:40:35]
[%emt 00:00:12]} 7.d5 {[%clk 01:42:22] [%emt 00:00:24]} 7...Qb6 {[%clk 01:41:02]
[%emt 00:00:04]} 8.Rb1 {[%clk 01:29:14] [%emt 00:13:37]} 8...Qa5 {[%clk
01:38:15] [%emt 00:03:15]} 9.Bd2 {[%clk 01:23:22] [%emt 00:06:23]} 9...e6 
{[%clk 01:37:05] [%emt 00:01:40]} 10.Nf3 {[%clk 01:23:02] [%emt 00:00:50]} 
10...exd5 {[%clk 01:36:20] [%emt 00:01:15]} 11.Nxd5 {[%clk 01:13:34] [%emt
00:09:58]} 11...Qd8 {[%clk 01:36:07] [%emt 00:00:43]} 12.Bg5 {[%clk 01:13:59]
[%emt 00:00:04]} 12...Nc6 {[%clk 01:27:10] [%emt 00:09:27]} 13.O-O {[%clk
01:13:57] [%emt 00:00:31]} 13...Re8 {[%clk 01:13:29] [%emt 00:14:11]} 14.Bd3 
{[%clk 01:09:33] [%emt 00:04:55]} 14...Nb4 {[%clk 00:41:12] [%emt 00:32:47]} 
15.Nxb4 {[%clk 00:46:01] [%emt 00:24:02]} 15...cxb4 {[%clk 00:41:25] [%emt
00:00:17]} 16.Qd2 {[%clk 00:46:25] [%emt 00:00:06]} 16...Bg4 {[%clk 00:27:30]
[%emt 00:14:25]} 17.Nd4 {[%clk 00:45:56] [%emt 00:00:59]} 17...Bd7 {[%clk
00:20:28] [%emt 00:07:30]} 18.Qxb4 {[%clk 00:38:43] [%emt 00:07:45]} 18...Qb6 
{[%clk 00:19:43] [%emt 00:01:15]} 19.Nb5 {[%clk 00:31:41] [%emt 00:07:32]} 
19...Nxe4 {[%clk 00:19:12] [%emt 00:01:01]} 20.Be3 {[%clk 00:31:45] [%emt
00:00:26]} 20...Nc5 {[%clk 00:18:48] [%emt 00:00:54]} 21.Qd2 {[%clk 00:31:08]
[%emt 00:01:07]} 21...Bxb5 {[%clk 00:15:52] [%emt 00:03:26]} 22.cxb5 {[%clk
00:31:31] [%emt 00:00:06]} 22...d5 {[%clk 00:16:21] [%emt 00:00:02]} 23.b4 
{[%clk 00:25:01] [%emt 00:07:01]} 23...d4 {[%clk 00:16:40] [%emt 00:00:10]} 
24.bxc5 {[%clk 00:25:08] [%emt 00:00:23]} 24...dxe3 {[%clk 00:17:08] [%emt
00:00:03]} 25.Qc2 {[%clk 00:25:32] [%emt 00:00:05]} 25...Qd8 {[%clk 00:16:30]
[%emt 00:01:06]} 26.fxe3 {[%clk 00:23:33] [%emt 00:02:31]} 26...Rxe3 {[%clk
00:15:44] [%emt 00:01:17]} 27.Rbd1 {[%clk 00:22:24] [%emt 00:01:38]} 27...Qg5 
{[%clk 00:05:11] [%emt 00:11:02]} 28.Kh1 {[%clk 00:20:28] [%emt 00:02:26]} 
28...Be5 {[%clk 00:04:09] [%emt 00:01:33]} 29.Qf2 {[%clk 00:13:32] [%emt
00:07:25]} 29...Qh6 {[%clk 00:04:32] [%emt 00:00:07]} 30.h3 {[%clk 00:13:52]
[%emt 00:00:10]} 30...Rxh3+ {[%clk 00:04:57] [%emt 00:00:06]} 31.gxh3 {[%clk
00:14:20] [%emt 00:00:02]} 31...Qxh3+ {[%clk 00:05:24] [%emt 00:00:04]} 1/2-1/2

[Event "FIDE Grand Swiss 2023"]
[Site "Villa Marina, Douglas, Isle of Man"]
[Date "2023.10.28"]
[Round "4.2"]
[White "Predke, Alexandr"]
[Black "Erigaisi, Arjun"]
[Result "1/2-1/2"]
[WhiteElo "2656"]
[BlackElo "2712"]
[EventDate "2023.10.25"]
[ECO "D41"]
[PlyCount "64"]
[BlackFideId "35009192"]
[TimeControl "40/100 + 20/50 + 15 + 30s/move"]
[WhiteFideId "24107581"]

1.d4 {[%clk 01:40:11] [%emt 00:00:48]} 1...Nf6 {[%clk 01:40:52] [%emt 00:00:08]} 
2.c4 {[%clk 01:40:34] [%emt 00:00:05]} 2...e6 {[%clk 01:41:18] [%emt 00:00:05]} 
3.Nf3 {[%clk 01:40:58] [%emt 00:00:06]} 3...d5 {[%clk 01:41:43] [%emt 00:00:06]} 
4.Nc3 {[%clk 01:41:19] [%emt 00:00:09]} 4...c5 {[%clk 01:42:07] [%emt 00:00:05]} 
5.cxd5 {[%clk 01:39:41] [%emt 00:02:09]} 5...Nxd5 {[%clk 01:41:55] [%emt
00:00:42]} 6.e4 {[%clk 01:39:56] [%emt 00:00:15]} 6...Nxc3 {[%clk 01:42:19]
[%emt 00:00:06]} 7.bxc3 {[%clk 01:40:23] [%emt 00:00:03]} 7...cxd4 {[%clk
01:42:44] [%emt 00:00:06]} 8.cxd4 {[%clk 01:40:48] [%emt 00:00:04]} 8...Bb4+ 
{[%clk 01:43:09] [%emt 00:00:05]} 9.Bd2 {[%clk 01:41:13] [%emt 00:00:05]} 
9...Bxd2+ {[%clk 01:43:35] [%emt 00:00:05]} 10.Qxd2 {[%clk 01:41:38] [%emt
00:00:04]} 10...O-O {[%clk 01:43:57] [%emt 00:00:07]} 11.h3 {[%clk 01:41:55]
[%emt 00:00:13]} 11...b6 {[%clk 01:41:29] [%emt 00:02:59]} 12.Rd1 {[%clk
01:41:43] [%emt 00:00:41]} 12...Bb7 {[%clk 01:39:35] [%emt 00:02:23]} 13.Bd3 
{[%clk 01:41:35] [%emt 00:00:38]} 13...Nc6 {[%clk 01:39:58] [%emt 00:00:07]} 
14.Qe3 {[%clk 01:40:48] [%emt 00:01:17]} 14...Rc8 {[%clk 01:27:44] [%emt
00:12:44]} 15.O-O {[%clk 01:40:04] [%emt 00:01:14]} 15...Re8 {[%clk 01:20:56]
[%emt 00:07:18]} 16.Bb1 {[%clk 01:24:24] [%emt 00:16:10]} 16...Na5 {[%clk
01:12:24] [%emt 00:09:02]} 17.d5 {[%clk 01:01:19] [%emt 00:23:36]} 17...exd5 
{[%clk 01:01:28] [%emt 00:11:25]} 18.e5 {[%clk 01:00:50] [%emt 00:00:59]} 
18...Nc4 {[%clk 01:01:52] [%emt 00:00:06]} 19.Qf4 {[%clk 01:00:27] [%emt
00:00:52]} 19...Qc7 {[%clk 01:00:04] [%emt 00:02:18]} 20.Rfe1 {[%clk 00:36:33]
[%emt 00:24:24]} 20...Re7 {[%clk 00:44:26] [%emt 00:16:08]} 21.Bxh7+ {[%clk
00:09:00] [%emt 00:28:03]} 21...Kxh7 {[%clk 00:43:17] [%emt 00:01:39]} 22.Qh4+ 
{[%clk 00:09:25] [%emt 00:00:04]} 22...Kg8 {[%clk 00:43:14] [%emt 00:00:33]} 
23.Ng5 {[%clk 00:09:52] [%emt 00:00:04]} 23...Rxe5 {[%clk 00:43:05] [%emt
00:00:38]} 24.Qh7+ {[%clk 00:10:19] [%emt 00:00:03]} 24...Kf8 {[%clk 00:43:29]
[%emt 00:00:06]} 25.Qh8+ {[%clk 00:10:45] [%emt 00:00:03]} 25...Ke7 {[%clk
00:43:55] [%emt 00:00:05]} 26.Qxg7 {[%clk 00:11:11] [%emt 00:00:05]} 26...Rxe1+ 
{[%clk 00:29:50] [%emt 00:14:34]} 27.Rxe1+ {[%clk 00:11:37] [%emt 00:00:04]} 
27...Kd6 {[%clk 00:30:16] [%emt 00:00:05]} 28.Qf6+ {[%clk 00:11:57] [%emt
00:00:10]} 28...Kc5 {[%clk 00:30:40] [%emt 00:00:06]} 29.Re7 {[%clk 00:12:24]
[%emt 00:00:02]} 29...Qd6 {[%clk 00:16:35] [%emt 00:14:35]} 30.Qxf7 {[%clk
00:12:49] [%emt 00:00:05]} 30...Kb4 {[%clk 00:13:46] [%emt 00:03:18]} 31.Rd7 
{[%clk 00:07:11] [%emt 00:06:09]} 31...Nd2 {[%clk 00:08:53] [%emt 00:05:23]} 
32.Rxd6 {[%clk 00:05:40] [%emt 00:02:01]} 32...Rc1+ {[%clk 00:09:18] [%emt
00:00:05]} 1/2-1/2

[Event "FIDE Grand Swiss 2023"]
[Site "Villa Marina, Douglas, Isle of Man"]
[Date "2023.10.28"]
[Round "4.3"]
[White "Sevian, Samuel"]
[Black "L'ami, Erwin"]
[Result "1/2-1/2"]
[WhiteElo "2698"]
[BlackElo "2627"]
[EventDate "2023.10.25"]
[ECO "C92"]
[PlyCount "93"]
[BlackFideId "1007998"]
[TimeControl "40/100 + 20/50 + 15 + 30s/move"]
[WhiteFideId "2040506"]

1.e4 {[%clk 01:40:42] [%emt 00:00:18]} 1...e5 {[%clk 01:40:44] [%emt 00:00:16]} 
2.Nf3 {[%clk 01:41:02] [%emt 00:00:10]} 2...Nc6 {[%clk 01:41:06] [%emt
00:00:08]} 3.Bb5 {[%clk 01:41:13] [%emt 00:00:19]} 3...a6 {[%clk 01:41:14] [%emt
00:00:23]} 4.Ba4 {[%clk 01:41:35] [%emt 00:00:08]} 4...Nf6 {[%clk 01:41:33]
[%emt 00:00:09]} 5.O-O {[%clk 01:41:14] [%emt 00:00:51]} 5...Be7 {[%clk
01:41:54] [%emt 00:00:10]} 6.Re1 {[%clk 01:41:26] [%emt 00:00:18]} 6...b5 
{[%clk 01:42:16] [%emt 00:00:08]} 7.Bb3 {[%clk 01:41:52] [%emt 00:00:04]} 
7...d6 {[%clk 01:42:19] [%emt 00:00:27]} 8.c3 {[%clk 01:41:53] [%emt 00:00:29]} 
8...O-O {[%clk 01:42:39] [%emt 00:00:09]} 9.h3 {[%clk 01:42:14] [%emt 00:00:09]} 
9...Re8 {[%clk 01:42:39] [%emt 00:00:31]} 10.d4 {[%clk 01:41:38] [%emt
00:01:07]} 10...Bb7 {[%clk 01:42:40] [%emt 00:00:29]} 11.Nbd2 {[%clk 01:41:19]
[%emt 00:00:49]} 11...Bf8 {[%clk 01:42:30] [%emt 00:00:40]} 12.Bc2 {[%clk
01:41:41] [%emt 00:00:08]} 12...Nb8 {[%clk 01:40:37] [%emt 00:02:22]} 13.a4 
{[%clk 01:41:26] [%emt 00:00:45]} 13...Nbd7 {[%clk 01:39:13] [%emt 00:01:53]} 
14.Bd3 {[%clk 01:41:50] [%emt 00:00:08]} 14...d5 {[%clk 01:30:17] [%emt
00:09:26]} 15.axb5 {[%clk 01:41:51] [%emt 00:00:29]} 15...dxe4 {[%clk 01:23:52]
[%emt 00:06:54]} 16.Nxe4 {[%clk 01:41:55] [%emt 00:00:26]} 16...Nxe4 {[%clk
01:20:04] [%emt 00:04:17]} 17.Bxe4 {[%clk 01:41:51] [%emt 00:00:36]} 17...Bxe4 
{[%clk 01:20:18] [%emt 00:00:15]} 18.Rxe4 {[%clk 01:42:16] [%emt 00:00:06]} 
18...axb5 {[%clk 01:19:26] [%emt 00:01:22]} 19.Rxa8 {[%clk 01:42:39] [%emt
00:00:07]} 19...Qxa8 {[%clk 01:19:50] [%emt 00:00:05]} 20.Qe2 {[%clk 01:43:03]
[%emt 00:00:06]} 20...f6 {[%clk 01:06:05] [%emt 00:14:15]} 21.dxe5 {[%clk
01:42:37] [%emt 00:00:56]} 21...Qa1 {[%clk 00:57:38] [%emt 00:08:57]} 22.Qc2 
{[%clk 01:29:35] [%emt 00:13:33]} 22...Nxe5 {[%clk 00:50:59] [%emt 00:07:09]} 
23.Nd4 {[%clk 01:29:53] [%emt 00:00:12]} 23...Rd8 {[%clk 00:45:02] [%emt
00:06:26]} 24.Re1 {[%clk 00:45:02] [%emt 00:45:21]} 24...Qa4 {[%clk 00:42:01]
[%emt 00:03:32]} 25.b3 {[%clk 00:44:52] [%emt 00:00:39]} 25...Qa6 {[%clk
00:40:59] [%emt 00:01:31]} 26.b4 {[%clk 00:24:57] [%emt 00:20:27]} 26...c5 
{[%clk 00:24:06] [%emt 00:17:22]} 27.bxc5 {[%clk 00:24:09] [%emt 00:01:18]} 
27...Bxc5 {[%clk 00:24:07] [%emt 00:00:29]} 28.Qb3+ {[%clk 00:21:31] [%emt
00:03:08]} 28...Kh8 {[%clk 00:21:42] [%emt 00:02:54]} 29.Ne6 {[%clk 00:13:37]
[%emt 00:08:25]} 29...Bxf2+ {[%clk 00:12:15] [%emt 00:09:57]} 30.Kxf2 {[%clk
00:14:02] [%emt 00:00:06]} 30...Nd3+ {[%clk 00:12:26] [%emt 00:00:18]} 31.Kf1 
{[%clk 00:07:26] [%emt 00:07:06]} 31...Re8 {[%clk 00:11:17] [%emt 00:01:39]} 
32.Re3 {[%clk 00:06:28] [%emt 00:01:29]} 32...Nxc1 {[%clk 00:06:56] [%emt
00:04:50]} 33.Ng5 {[%clk 00:06:12] [%emt 00:00:47]} 33...b4+ {[%clk 00:06:29]
[%emt 00:00:56]} 34.Kg1 {[%clk 00:06:16] [%emt 00:00:27]} 34...Qa7 {[%clk
00:06:35] [%emt 00:00:24]} 35.Kh1 {[%clk 00:03:45] [%emt 00:03:01]} 35...Rf8 
{[%clk 00:03:36] [%emt 00:03:29]} 36.Qxb4 {[%clk 00:01:33] [%emt 00:02:42]} 
36...Qb8 {[%clk 00:02:39] [%emt 00:01:26]} 37.Nf7+ {[%clk 00:00:41] [%emt
00:01:23]} 37...Kg8 {[%clk 00:03:03] [%emt 00:00:05]} 38.Nd6 {[%clk 00:01:04]
[%emt 00:00:07]} 38...Qc7 {[%clk 00:01:21] [%emt 00:02:12]} 39.Nf5 {[%clk
00:01:14] [%emt 00:00:20]} 39...Rd8 {[%clk 00:01:10] [%emt 00:00:41]} 40.Qa4 
{[%clk 00:00:54] [%emt 00:00:51]} 40...Qd7 {[%clk 00:01:09] [%emt 00:00:30]} 
41.Qa5 {[%clk 00:20:44] [%emt 00:30:40]} 41...g6 {[%clk 00:32:56] [%emt
00:18:43]} 42.Qb6 {[%clk 00:15:09] [%emt 00:06:06]} 42...gxf5 {[%clk 00:23:04]
[%emt 00:10:21]} 43.Qxf6 {[%clk 00:15:07] [%emt 00:00:33]} 43...Qc7 {[%clk
00:22:29] [%emt 00:01:04]} 44.Qg5+ {[%clk 00:14:24] [%emt 00:01:13]} 44...Kh8 
{[%clk 00:21:40] [%emt 00:01:19]} 45.Qf6+ {[%clk 00:13:58] [%emt 00:00:57]} 
45...Kg8 {[%clk 00:21:56] [%emt 00:00:13]} 46.Qg5+ {[%clk 00:12:36] [%emt
00:01:52]} 46...Kh8 {[%clk 00:22:13] [%emt 00:00:12]} 47.Qf6+ {[%clk 00:08:27]
[%emt 00:04:40]} 1/2-1/2

[Event "FIDE Grand Swiss 2023"]
[Site "Villa Marina, Douglas, Isle of Man"]
[Date "2023.10.28"]
[Round "4.4"]
[White "Maurizzi, Marc`andria"]
[Black "Esipenko, Andrey"]
[Result "0-1"]
[WhiteElo "2555"]
[BlackElo "2683"]
[EventDate "2023.10.25"]
[ECO "C88"]
[PlyCount "56"]
[BlackFideId "24175439"]
[TimeControl "40/100 + 20/50 + 15 + 30s/move"]
[WhiteFideId "36083534"]

1.e4 {[%clk 01:40:39] [%emt 00:00:19]} 1...e5 {[%clk 01:40:37] [%emt 00:00:24]} 
2.Nf3 {[%clk 01:41:02] [%emt 00:00:06]} 2...Nc6 {[%clk 01:41:01] [%emt
00:00:07]} 3.Bb5 {[%clk 01:40:02] [%emt 00:01:30]} 3...a6 {[%clk 01:40:28] [%emt
00:01:03]} 4.Ba4 {[%clk 01:39:49] [%emt 00:00:43]} 4...Nf6 {[%clk 01:40:45]
[%emt 00:00:12]} 5.O-O {[%clk 01:39:30] [%emt 00:00:49]} 5...Be7 {[%clk
01:40:41] [%emt 00:00:35]} 6.Re1 {[%clk 01:38:24] [%emt 00:01:36]} 6...b5 
{[%clk 01:40:50] [%emt 00:00:22]} 7.Bb3 {[%clk 01:38:50] [%emt 00:00:03]} 
7...O-O {[%clk 01:41:12] [%emt 00:00:08]} 8.a4 {[%clk 01:38:58] [%emt 00:00:22]} 
8...Rb8 {[%clk 01:39:49] [%emt 00:01:52]} 9.axb5 {[%clk 01:38:42] [%emt
00:00:47]} 9...axb5 {[%clk 01:40:12] [%emt 00:00:07]} 10.h3 {[%clk 01:39:09]
[%emt 00:00:03]} 10...d6 {[%clk 01:39:22] [%emt 00:01:20]} 11.c3 {[%clk
01:38:30] [%emt 00:01:09]} 11...b4 {[%clk 01:32:35] [%emt 00:07:18]} 12.d3 
{[%clk 01:37:32] [%emt 00:01:27]} 12...h6 {[%clk 01:25:57] [%emt 00:07:08]} 
13.Nbd2 {[%clk 01:26:06] [%emt 00:11:54]} 13...Re8 {[%clk 01:17:16] [%emt
00:09:12]} 14.c4 {[%clk 01:17:16] [%emt 00:09:21]} 14...Bd7 {[%clk 01:05:40]
[%emt 00:12:06]} 15.Ba4 {[%clk 01:15:50] [%emt 00:01:55]} 15...Bf8 {[%clk
01:04:26] [%emt 00:01:44]} 16.Nb3 {[%clk 01:14:29] [%emt 00:01:51]} 16...Ne7 
{[%clk 01:02:41] [%emt 00:02:15]} 17.d4 {[%clk 01:03:17] [%emt 00:11:42]} 
17...Bxa4 {[%clk 00:54:17] [%emt 00:08:55]} 18.Rxa4 {[%clk 01:03:44] [%emt
00:00:03]} 18...exd4 {[%clk 00:54:33] [%emt 00:00:14]} 19.Nbxd4 {[%clk 01:03:29]
[%emt 00:00:45]} 19...c5 {[%clk 00:50:34] [%emt 00:04:29]} 20.Nb5 {[%clk
01:00:25] [%emt 00:03:34]} 20...Ng6 {[%clk 00:46:07] [%emt 00:04:57]} 21.Qd3 
{[%clk 00:53:15] [%emt 00:07:39]} 21...Qb6 {[%clk 00:43:53] [%emt 00:02:44]} 
22.b3 {[%clk 00:29:04] [%emt 00:24:42]} 22...Qc6 {[%clk 00:42:55] [%emt
00:01:27]} 23.Nd2 {[%clk 00:27:41] [%emt 00:01:54]} 23...d5 {[%clk 00:40:46]
[%emt 00:02:39]} 24.Na7 {[%clk 00:27:35] [%emt 00:00:36]} 24...Qb7 {[%clk
00:40:52] [%emt 00:00:23]} 25.cxd5 {[%clk 00:28:02] [%emt 00:00:04]} 25...Nxd5 
{[%clk 00:40:44] [%emt 00:00:37]} 26.Bb2 {[%clk 00:27:31] [%emt 00:01:01]} 
26...Ndf4 {[%clk 00:31:11] [%emt 00:10:03]} 27.Qf1 {[%clk 00:22:04] [%emt
00:05:58]} 27...Rbd8 {[%clk 00:27:57] [%emt 00:03:44]} 28.Nf3 {[%clk 00:19:11]
[%emt 00:03:23]} 28...Rxe4 {[%clk 00:26:45] [%emt 00:01:41]} 0-1